Workbook

Sheet TARIFÁLÓ
A1: MERT JOGÁBAN ÁLL MERT JOGÁBAN ÁLL | B1: Üdvözöllek a tarifáló programban, a mai dátum: | J1: =TODAY() -> 2019-12-12 | O1: MERT JOGÁBAN ÁLL MERT JOGÁBAN ÁLL

Sheet Családi (hidden)
A2: Családi
A4: Termék | B4: Fizetési mód | C4: Fizetési gyakoriság | D4: HÍD | E4: HÍD további gépjármű darabszám | F4: Családi + Híd éves díj | G4: Összes fizetendő éves díj | H4: Gyakoriság szerint fizetendő díj
A5: Standard Classic | B5: Csoportos | C5: Féléves | D5: Nem | E5: 0 | H5: =+IF(AND(C5=Adatok!E7,NOT(B5=Adatok!C4)),"Havi csak CSOB-osan köthető!!!",A7*B7*C7*VLOOKUP(C5,Adatok!E4:G7,3,FALSE)+IF(D9="A Standard Classic mellé nem lehet Híd csomagot kötni.",0,D9)*VLOOKUP(C5,Adatok!E4:G7,3,FALSE)+IF(E9="A Standard Classic mellé nem lehet Híd csomagot kötni.",0,IF(D5="Igen",E9,0))*VLOOKUP(C5,Adatok!E4:G7,3,FALSE)) -> 30450 | K5: 
A6: Családi éves díj | B6: Szorzó | C6: Szorzó | D6: Híd éves díj | E6: Éves díj/darab | H6: Első díj
A7: =+VLOOKUP(A5,Adatok!A4:B6,2,FALSE) -> 58000 | B7: =+VLOOKUP(B5,Adatok!C4:D6,2,FALSE) -> 1 | C7: =+VLOOKUP(C5,Adatok!E4:F7,2,FALSE) -> 1.05 | D7: 50000 | E7: 16 000 Ft/további gépjármű | F7: =+A7+IF(A5="Standard Classic",0,IF(D5="Igen",D7+E5*16000,0)) -> 58000 | G7: =+IF(H5="Havi csak CSOB-osan köthető!!!","Havi csak CSOB-osan köthető!!!",H5*VLOOKUP(C5,Adatok!E4:H7,4,FALSE)) -> 60900 | H7: =+IF(H5="Havi csak CSOB-osan köthető!!!","Havi csak CSOB-osan köthető!!!",H5*VLOOKUP(C5,Adatok!E4:I7,5,FALSE)) -> 30450
A8: Családi fizetendő éves díj | D8: Híd fizetendő éves díj | E8: További jármű fizetendő éves díj
A9: =+A7*B7*C7 -> 60900 | D9: =IF(A5="Standard Classic","A Standard Classic mellé nem lehet Híd csomagot kötni.",IF(NOT(ISBLANK(D5)),VLOOKUP(D5,Adatok!J4:K5,2,FALSE),0)*VLOOKUP(C5,Adatok!E4:G7,2,FALSE)*VLOOKUP(B5,Adatok!C4:D6,2,FALSE)) -> A Standard Classic mellé nem lehet Híd csomagot kötni. | E9: =IF(A5="Standard Classic","A Standard Classic mellé nem lehet Híd csomagot kötni.",IF(NOT(ISBLANK(E5)),E5*Adatok!L4,0)*VLOOKUP(C5,Adatok!E4:G7,2,FALSE)*VLOOKUP(B5,Adatok!C4:D6,2,FALSE)) -> A Standard Classic mellé nem lehet Híd csomagot kötni.

Sheet Családi díj (hidden)
A1: D.A.S. Jogvédelmi Biztosító Zrt. 1082 Budapest, Futó utca 47-53. Tel.: +36 1 486 3600 info@das.hu - www.das.hu
A10: CSALÁDI JOGVÉDELM INDÍKATÍV AJÁNLAT MAGÁNSZEMÉLY RÉSZÉRE
A12: Ajánlatkérés adatai:
A13: Ügyfél neve
A14: Állandó lakcíme
A15: Telefonszáma
A16: Emailcíme
A17: Választott csomag | B17: =IF(Családi!A5="standard classic","Standard classic",IF(Családi!A5="Médium classic","Médium classic",IF(Családi!A5="Prémium classic","Prémium classic"))) -> Standard classic | D17: =IF(B17="Standard classic","2.400.000Ft/kár, 4.800.000Ft/év, 4.800.000Ft óvadék",IF(B17="Médium classic","3.700.000Ft/kár, 7.400.000Ft/év, 7.400.000Ft óvadék",IF(B17="Prémium classic","5.000.000Ft/kár, 10.000.000Ft/év, 10.000.000Ft óvadék"))) -> 2.400.000Ft/kár, 4.800.000Ft/év, 4.800.000Ft óvadék | G17: Szolgáltatási limit
A18: Fizetési mód | B18: =IF(Családi!B5="Csoportos","Csoportos",IF(Családi!B5="Átutalásos","Átutalásos",IF(Családi!B5="Csekkes","Csekkes"))) -> Csoportos
A19: Fizetési gyakoriság | B19: =IF(Családi!C5="Éves","Éves",IF(Családi!C5="Féléves","Féléves",IF(Családi!C5="Negyedéves","Negyedéves",IF(Családi!C5="Havi","Havi")))) -> Féléves
A20: Híd | B20: =IF(Családi!A5="Standard classic","",IF(Családi!D5="igen","Igen","Nem")) -> 
A21: Híd további gépjármű darabszám | B21: =IF(Családi!A5="standard classic",0,IF(Családi!D5="igen",Családi!E5,0)) -> 0 | C21: =IF(Családi!A5="standard classic","",IF(Családi!D5="igen",Családi!E7,"")) -> 
A26: SZÁMÍTOTT DÍJ
A28: Családi éves díj | B28: =Családi!A7 -> 58000
A29: Családi fizetendő éves díj | B29: =Családi!A9 -> 60900
A30: Híd éves díj | B30: =IF(Családi!A5="Standard classic",0,Családi!D7) -> 0
A31: Híd fizetendő éves díj | B31: =Családi!D9 -> A Standard Classic mellé nem lehet Híd csomagot kötni.
A32: Híd további jármű éves díj | B32: =Családi!E9 -> A Standard Classic mellé nem lehet Híd csomagot kötni.
A33: Családi + Híd éves díj | B33: =Családi!F7 -> 58000
A34: Összes fizetendő éves díj | B34: =Családi!G7 -> 60900
A35: Gyakoriság szerint fizetendő díj | B35: =Családi!H5 -> 30450
A41: Díjajánlat kiadva: | B41: =TODAY() -> 2019-12-12
A44: Bizosításközvetítő neve:
A47: Figyelem:
A48: Felhívjuk szíves figyelmét, hogy jelen ajánlatunk indikatív jellegű, további tárgyalások alapjául szolgál, és nem jelent szerződéskötési kötelezettségvállalást a D.A.S. JogSzerviz részéről. Az alábbiakban ismertetett konstrukciókat a Társaságukról jelenleg rendelkezésünkre álló információk alapján, meghatározott feltételek fennállása esetén ajánljuk. Ajánlatunk a kiadástól számított 30 napig szolgál a köztünk lévő tárgyalás alapjának.

Sheet VIP (hidden)
A2: VIP
A4: Termék | B4: Fizetési mód | C4: Fizetési gyakoriság | D4: HÍD | E4: HÍD további gépjármű darabszám | F4: VIP + Híd éves díj | G4: Összes fizetendő éves díj | H4: Gyakoriság szerint fizetendő díj
A5: VIP Standard | B5: Csekkes | C5: Negyedéves | D5: Nem | E5: 0 | H5: =+IF(AND(C5=Adatok!E7,NOT(B5=Adatok!C4)),"Havi csak CSOB-osan köthető!!!",A7*B7*C7*VLOOKUP(C5,Adatok!E4:G7,3,FALSE)+D9*VLOOKUP(C5,Adatok!E4:G7,3,FALSE)+IF(D5="Nem",0,E9)*VLOOKUP(C5,Adatok!E4:G7,3,FALSE)) -> 42224.875
A6: VIP éves díj | B6: Szorzó | C6: Szorzó | D6: Híd éves díj | E6: Éves díj/darab | H6: Első díj
A7: =+VLOOKUP(A5,Adatok!A7:B9,2,FALSE) -> 154000 | B7: =+VLOOKUP(B5,Adatok!C4:D6,2,FALSE) -> 1.025 | C7: =+VLOOKUP(C5,Adatok!E4:F7,2,FALSE) -> 1.07 | D7: 50000 | E7: 16 000 Ft/további gépjármű | F7: =+A7+IF(D5="Nem",0,IF(D5="Igen",D7+E5*16000,0)) -> 154000 | G7: =+A9+D9+IF(D5="Nem",0,E9) -> 168899.5 | H7: =+IF(H5="Havi csak CSOB-osan köthető!!!","Havi csak CSOB-osan köthető!!!",H5*VLOOKUP(C5,Adatok!E4:I7,5,FALSE)) -> 42224.875
A8: VIP fizetendő éves díj | D8: Híd fizetendő éves díj | E8: További jármű fizetendő éves díj
A9: =+A7*B7*C7 -> 168899.5 | D9: =IF(NOT(ISBLANK(D5)),VLOOKUP(D5,Adatok!J4:K5,2,FALSE),0)*VLOOKUP(C5,Adatok!E4:F7,2,FALSE)*VLOOKUP(B5,Adatok!C4:D6,2,FALSE) -> 0 | E9: =+IF(NOT(ISBLANK(E5)),E5*Adatok!L4,0)*VLOOKUP(C5,Adatok!E4:F7,2,FALSE)*VLOOKUP(B5,Adatok!C4:D6,2,FALSE) -> 0

Sheet Jogtárs (hidden)
A2: Jogtárs
A4: Szerződő | B4: Csomag | C4: Fizetési mód | D4: Fizetési gyakoriság | E4: Alkalmazottak létszáma | F4: Éves összes bevétel | G4: Jogtárs éves díja | H4: Ingatlan
A5: Vállalkozás | B5: Standard | C5: Csoportos | D5: Negyedéves | E5: 0 | F5: 0 | G5: =IF(A5="Társasház",A12,IF(AND(E5=0,F5=0),0,IF(A5="Vállalkozás",IF(OR(E6="Egyedi ajánlatkérés szükséges",F6="Egyedi ajánlatkérés szükséges"),0,IF(B5="Standard",INDEX(Adatok!H25:K28,VLOOKUP($E$5,Adatok!G31:I34,3,TRUE),VLOOKUP($F$5,Adatok!G36:I39,3,TRUE)),INDEX(Adatok!N25:Q28,VLOOKUP($E$5,Adatok!G31:I34,3,TRUE),VLOOKUP($F$5,Adatok!G36:I39,3,TRUE)))),A12))) -> 0 | H5: 0
D6: Szorzó | E6: =+IF(OR(E5>249,F5>3000000000),"Egyedi ajánlatkérés szükséges","") ->  | H6: Ingatlan kiegészítő éves díja
A7: Társasház hasznos alapterülete nm-ben | D7: =+VLOOKUP(D5,Adatok!E4:F7,2,FALSE) -> 1.07 | H7: =+IF(B5="Prémium",62000,41000)&" Ft"&"/ingatlan" -> 41000 Ft/ingatlan
A8: 0 | H8: Ingatlan éves díja
A9: Éves díj | H9: =+IF(E6="Egyedi ajánlatkérés szükséges",0,H5*+IF(B5="Prémium",62000,41000)) -> 0
A10: =+IF(B5="Prémium",100,68)&" Ft"&"/nm" -> 68 Ft/nm
A11: Társasház éves díja | D11: Összes éves díj | E11: Összes fizetendő éves díj | F11: Gyakoriság szerint fizetendő díj | G11: Első díj
A12: =+MAX(A8*IF(B5="Standard",68,100),IF(B5="Standard",68000,100000)) -> 68000 | D12: =IF(A5="Társasház",A12,IF(AND(E5=0,F5=0),0,IF(A5="Vállalkozás",IF(OR(E6="Egyedi ajánlatkérés szükséges",F6="Egyedi ajánlatkérés szükséges"),0,IF(B5="Standard",INDEX(Adatok!H25:K28,VLOOKUP($E$5,Adatok!G31:I34,3,TRUE),VLOOKUP($F$5,Adatok!G36:I39,3,TRUE)),INDEX(Adatok!N25:Q28,VLOOKUP($E$5,Adatok!G31:I34,3,TRUE),VLOOKUP($F$5,Adatok!G36:I39,3,TRUE)))+H9),A12))) -> 0 | E12: =+D12*$D$7 -> 0 | F12: =+E12*VLOOKUP(D5,Adatok!E4:G7,3) -> 0 | G12: =+F12 -> 0
A13: =+IF(AND(AND($A$5="Társasház",$B$5="Prémium"),A8*100<100000),"A minimum díj 100 000 Ft",(IF(AND(AND($A$5="Társasház",$B$5="Standard"),A8*68<68000),"A minimum díj 68 000 Ft",""))) -> 

Sheet Jogtárs díj (hidden)
A1: D.A.S. Jogvédelmi Biztosító Zrt. 1082 Budapest, Futó utca 47-53. Tel.: +36 1 486 3600 info@das.hu - www.das.hu
A7: =IF(Jogtárs!A5="vállalkozás","JOGTÁRS INDIKATÍV DÍJAJÁNLAT VÁLLALKOZÁSOKNAK","JOGTÁRS INDIKATÍV DÍJAJÁNLAT TÁRSASHÁZAKNAK") -> JOGTÁRS INDIKATÍV DÍJAJÁNLAT VÁLLALKOZÁSOKNAK
A10: =IF(Jogtárs!A5="vállalkozás","Ajánlatkérő cég adatai:","Ajánlatkérő társasház adatai") -> Ajánlatkérő cég adatai:
A11: =IF(Jogtárs!A5="vállalkozás","Cég neve:","Társasház neve") -> Cég neve:
A12: =IF(Jogtárs!A5="vállalkozás","Cég székhelye","Társasház címe") -> Cég székhelye
A13: =IF(Jogtárs!A5="vállalkozás","Cég Adószáma","Közös képviselő neve") -> Cég Adószáma
A14: =IF(Jogtárs!A5="vállalkozás","Tevékenység TEÁOR","Közös képviselő telefonja") -> Tevékenység TEÁOR
A15: =IF(Jogtárs!A6="vállalkozás","Email cím","Email cím") -> Email cím
A19: Számításhoz adatok:
A20: =IF(Jogtárs!A5="vállalkozás","Éves árbevétel:","Hasznos alapterület") -> Éves árbevétel: | C20: =IF(Jogtárs!A5="vállalkozás",Jogtárs!F5,Jogtárs!A8) -> 0 | E20: =IF(Jogtárs!A5="vállalkozás","Ft","nm") -> Ft
A21: =IF(Jogtárs!A5="vállalkozás","Dolgozói létszám:","Választott csomag") -> Dolgozói létszám: | C21: =IF(Jogtárs!A5="vállalkozás",Jogtárs!E5,Jogtárs!B5) -> 0 | E21: =IF(Jogtárs!A5="társasház",Jogtárs!A10,"fő") -> fő
A22: =IF(Jogtárs!A5="vállalkozás","Ingatlanok db száma","Díjfizetési gyakoriság") -> Ingatlanok db száma | C22: =IF(Jogtárs!A5="vállalkozás",Jogtárs!H5,Jogtárs!D5) -> 0 | E22: =IF(Jogtárs!A5="vállalkozás","db","") -> db
A23: =IF(Jogtárs!A5="vállalkozás","Választott csomag","Díjfizetési mód") -> Választott csomag | C23: =IF(Jogtárs!A5="vállalkozás",Jogtárs!B5,Jogtárs!C5) -> Standard
A24: =IF(Jogtárs!A5="vállalkozás","Díjfizetési gyakoriság","") -> Díjfizetési gyakoriság | C24: =IF(Jogtárs!A5="vállalkozás",Jogtárs!D5,"") -> Negyedéves
A25: =IF(Jogtárs!A5="vállalkozás","Díjfizetési mód","") -> Díjfizetési mód | C25: =IF(Jogtárs!A5="vállalkozás",Jogtárs!C5,"") -> Csoportos
A29: SZÁMÍTOTT DÍJ
A31: Biztosítási Összeg | F31: =IF(Jogtárs!B5="standard","5 000 000 Ft/esemény/év","10 000 000 Ft/esemény/év") -> 5 000 000 Ft/esemény/év
A32: =IF(Jogtárs!A5="vállalkozás","Alap díj (ingatlan nélkül)","Társasház éves díja") -> Alap díj (ingatlan nélkül) | F32: =IF(Jogtárs!A5="vállalkozás",Jogtárs!G5,Jogtárs!A12) -> 0
A33: =IF(Jogtárs!A5="vállalkozás","Ingatlan jog éves díj/ingatlan","Összes fizetendő éves díj") -> Ingatlan jog éves díj/ingatlan | F33: =IF(Jogtárs!A5="vállalkozás",Jogtárs!H7,Jogtárs!E12) -> 41000 Ft/ingatlan
A34: =IF(Jogtárs!A5="vállalkozás","","Gyakoriság szerint fizetendő díj") ->  | F34: =IF(Jogtárs!A5="vállalkozás","",Jogtárs!F12) -> 
A35: =IF(Jogtárs!A5="vállalkozás","Összes éves díj (alap+ingatlan)","") -> Összes éves díj (alap+ingatlan) | F35: =IF(Jogtárs!A5="vállalkozás",Jogtárs!D12,"") -> 0
A36: =IF(Jogtárs!A5="vállalkozás","Összes fizetendő éves díj","") -> Összes fizetendő éves díj | F36: =IF(Jogtárs!A5="vállalkozás",Jogtárs!E12,"") -> 0
A37: =IF(Jogtárs!A5="vállalkozás","Ebből az ingatlan","") -> Ebből az ingatlan | F37: =IF(Jogtárs!A5="vállalkozás",Jogtárs!H9,"") -> 0
A38: =IF(Jogtárs!A5="vállalkozás","Gyakoriság szerint fizetendő díj","") -> Gyakoriság szerint fizetendő díj | F38: =IF(Jogtárs!A5="vállalkozás",Jogtárs!F12,"") -> 0
A42: Díjajánlat kiadva: | C42: =TODAY() -> 2019-12-12
A45: Biztosításközvetítő neve:
A47: Figyelem:
A48: Felhívjuk szíves figyelmét, hogy jelen ajánlatunk indikatív jellegű, további tárgyalások alapjául szolgál, és nem jelent szerződéskötési kötelezettségvállalást a D.A.S. JogSzerviz részéről. Az alábbiakban ismertetett konstrukciókat a Társaságukról jelenleg rendelkezésünkre álló információk alapján, meghatározott feltételek fennállása esetén ajánljuk. Ajánlatunk a kiadástól számított 30 napig szolgál a köztünk lévő tárgyalás alapjának.

Sheet VIP díj (hidden)
A1: D.A.S. Jogvédelmi Biztosító Zrt. 1082 Budapest, Futó utca 47-53. Tel.: +36 1 486 3600 info@das.hu - www.das.hu
A10: CSALÁDI VIP JOGVÉDELM INDÍKATÍV AJÁNLAT MAGÁNSZEMÉLY RÉSZÉRE
A12: Ajánlatkérés adatai:
A13: Ügyfél neve
A14: Állandó lakcíme
A15: Telefonszáma
A16: Emailcíme
A17: Választott csomag | B17: =IF(VIP!A5="Vip standard","Vip standard",IF(VIP!A5="Vip médium","Vip médium",IF(VIP!A5="Vip prémium","Vip prémium"))) -> Vip standard | D17: =IF(B17="Vip standard","10.000.000Ft/kár/év, 20.000.000Ft óvadék",IF(B17="Vip médium","10.000.000Ft/kár/év, 20.000.000Ft óvadék",IF(B17="Vip Prémium","15.000.000Ft/kár/év, 30.000.000Ft óvadék"))) -> 10.000.000Ft/kár/év, 20.000.000Ft óvadék | G17: Szolgáltatási limit
A18: Fizetési mód | B18: =IF(VIP!B5="Csoportos","Csoportos",IF(VIP!B5="Átutalásos","Átutalásos",IF(VIP!B5="Csekkes","Csekkes"))) -> Csekkes
A19: Fizetési gyakoriság | B19: =IF(VIP!C5="Éves","Éves",IF(VIP!C5="Féléves","Féléves",IF(VIP!C5="Negyedéves","Negyedéves"))) -> Negyedéves
A20: Híd | B20: =IF(VIP!A5="Standard classic","",IF(VIP!D5="igen","Igen","Nem")) -> Nem
A21: Híd további gépjármű darabszám | B21: =IF(VIP!D5="igen",VIP!E5,0) -> 0 | C21: ='Családi díj'!B21:C21 -> 
A26: SZÁMÍTOTT DÍJ
A28: VIP éves díj | C28: =VIP!A7 -> 154000
A29: VIP fizetendő éves díj | C29: =VIP!A9 -> 168899.5
A30: Híd éves díj | C30: =IF(VIP!D5="igen",VIP!D7,"") -> 
A31: Híd fizetendő éves díj | C31: =IF(VIP!D5="igen",VIP!D9,"") -> 
A32: Híd további jármű éves díj | C32: =IF(VIP!D5="igen",VIP!E9,"") -> 
A33: VIP + Híd éves díj | C33: =VIP!F7 -> 154000
A34: Összes fizetendő éves díj | C34: =VIP!G7 -> 168899.5
A35: Gyakoriság szerint fizetendő díj | C35: =VIP!H5 -> 42224.875
A41: Díjajánlat kiadva: | B41: =TODAY() -> 2019-12-12
A44: Bizosításközvetítő neve:
A47: Figyelem:
A48: Felhívjuk szíves figyelmét, hogy jelen ajánlatunk indikatív jellegű, további tárgyalások alapjául szolgál, és nem jelent szerződéskötési kötelezettségvállalást a D.A.S. JogSzerviz részéről. Az alábbiakban ismertetett konstrukciókat a Társaságukról jelenleg rendelkezésünkre álló információk alapján, meghatározott feltételek fennállása esetén ajánljuk. Ajánlatunk a kiadástól számított 30 napig szolgál a köztünk lévő tárgyalás alapjának.

Sheet Gépjárművezetői (hidden)
A2: Gépjárművezetői
A4: Szerződő | B4: Biztosított jogosítványok darabszáma | C4: Fizetési mód | D4: Fizetési gyakoriság | F4: =+IF(G7<10000,"A Gyakoriság szerint fizetendő díj nem lehet 10.000 Forint alatt!","") -> A Gyakoriság szerint fizetendő díj nem lehet 10.000 Forint alatt!
A5: NEM magánszemély | B5: 0 | C5: Csoportos | D5: Negyedéves
A6: Éves díj | B6: Szorzó | C6: Szorzó | D6: Szorzó | F6: Fizetendő éves díj | G6: Gyakoriság szerint fizetendő díj
A7: =+VLOOKUP(A5,Adatok!N4:O5,2,FALSE)*B7 -> 0 | B7: =B5 -> 0 | C7: =+VLOOKUP(C5,Adatok!C4:D6,2,FALSE) -> 1 | D7: =+VLOOKUP(D5,Adatok!E4:F7,2,FALSE) -> 1.07 | E7: =+A7*C7*D7 -> 0 | F7: =+IF(G7="Havi csak CSOB-osan köthető!!!","Havi csak CSOB-osan köthető!!!",ROUND(G7*VLOOKUP(D5,Adatok!E4:H7,4,FALSE),0)) -> 0 | G7: =+IFERROR(IF(AND(D5=Adatok!E7,NOT(C5=Adatok!C4)),"Havi csak CSOB-osan köthető!!!",E7/B7/VLOOKUP(D5,Adatok!E4:H7,4,FALSE)*B7),0) -> 0
G8: Első díj
G9: =+IF(G7="Havi csak CSOB-osan köthető!!!","Havi csak CSOB-osan köthető!!!",G7*VLOOKUP(D5,Adatok!E4:I7,5,FALSE)) -> 0

Sheet Gépjárművezetői díj (hidden)
A1: D.A.S. Jogvédelmi Biztosító Zrt. 1082 Budapest, Futó utca 47-53. Tel.: +36 1 486 3600 info@das.hu - www.das.hu
A13: =IF(Gépjárművezetői!A5="magánszemély","GÉPJÁRMŰVEZETŐI INDIKATÍV ÁRAJÁNLAT MAGÁNSZEMÉLY RÉSZÉRE","GÉPJÁRMŰVEZETŐI INDIKATÍV ÁRAJÁNLAT VÁLLALKOZÁS RÉSZÉRE") -> GÉPJÁRMŰVEZETŐI INDIKATÍV ÁRAJÁNLAT VÁLLALKOZÁS RÉSZÉRE
A15: Ajánlatkérés adatai:
A16: =IF(Gépjárművezetői!A5="Nem magánszemély","Cég neve","Ügyfél neve") -> Cég neve
A17: =IF(Gépjárművezetői!A5="nem magánszemély","Cég székhelye","Ügyfél állandó címe") -> Cég székhelye
A18: =IF(Gépjárművezetői!A5="nem magánszemély","Cég adószáma","Ügyfél telefonszáma") -> Cég adószáma
A19: =IF(Gépjárművezetői!A5="nem magánszemély","Kapcsolattartó neve","Email cím") -> Kapcsolattartó neve
A20: =IF(Gépjárművezetői!A5="nem magánszemély","Kapcsolattartó telefonszáma","") -> Kapcsolattartó telefonszáma
A21: =IF(Gépjárművezetői!A5="nem magánszemély","Email cím","") -> Email cím
A22: =IF(Gépjárművezetői!A5="nem magánszemély",Gépjárművezetői!B4,Gépjárművezetői!B4) -> Biztosított jogosítványok darabszáma | B22: =IF(Gépjárművezetői!A5="nem magánszemély",Gépjárművezetői!B5,Gépjárművezetői!B5) -> 0 | D22: =IF(Gépjárművezetői!A5="nem magánszemély",Gépjárművezetői!F4,Gépjárművezetői!F4) -> A Gyakoriság szerint fizetendő díj nem lehet 10.000 Forint alatt!
A23: Fizetési mód | B23: =IF(Gépjárművezetői!A5="nem magánszemély",Gépjárművezetői!C5,Gépjárművezetői!C5) -> Csoportos
A24: Fizetési gyakoriság | B24: =IF(Gépjárművezetői!A5="nem magánszemély",Gépjárművezetői!D5,Gépjárművezetői!D5) -> Negyedéves
A29: SZÁMÍTOTT DÍJ
A31: Éves Díj | C31: =IF(Gépjárművezetői!A5="nem magánszemély",Gépjárművezetői!A7,Gépjárművezetői!A7) -> 0
A32: Fizetendő éves díj | C32: =IF(Gépjárművezetői!A6="nem magánszemély",Gépjárművezetői!F7,Gépjárművezetői!F7) -> 0
A33: Gyakoriság szerint fizetendő díj | C33: =IF(Gépjárművezetői!A7="nem magánszemély",Gépjárművezetői!G7,Gépjárművezetői!G7) -> 0
A35: =IF(Gépjárművezetői!D5="havi","Ha a fizetési gyakoriság havi, akkor a első fizetendő díj a gyakoriság szerinti díj kétszerese","") -> 
A42: Díjajánlat kiadva: | B42: =TODAY() -> 2019-12-12
A45: Bizosításközvetítő neve:
A48: Figyelem:
A49: Felhívjuk szíves figyelmét, hogy jelen ajánlatunk indikatív jellegű, további tárgyalások alapjául szolgál, és nem jelent szerződéskötési kötelezettségvállalást a D.A.S. JogSzerviz részéről. Az alábbiakban ismertetett konstrukciókat a Társaságukról jelenleg rendelkezésünkre álló információk alapján, meghatározott feltételek fennállása esetén ajánljuk. Ajánlatunk a kiadástól számított 30 napig szolgál a köztünk lévő tárgyalás alapjának.

Sheet Útravaló (hidden)
A2: Útravaló | I2: =+IF(C5="Éves","",IF(J5<10000,"A Gyakoriság szerint fizetendő díj nem lehet 10.000 Forint alatt!","")) -> A Gyakoriság szerint fizetendő díj nem lehet 10.000 Forint alatt!
A4: Biztosított | B4: Fizetési mód | C4: Fizetési gyakoriság | I4: Összes fizetendő éves díj | J4: Gyakoriság szerint fizetendő díj
A5: NEM magánszemély | B5: Csoportos | C5: Havi | I5: =+IF(J5="Havi csak CSOB-osan köthető!!!","Havi csak CSOB-osan köthető!!!",J5*VLOOKUP(C5,Adatok!E4:H7,4,FALSE)) -> 0 | J5: =IF(AND(C5=Adatok!E7,NOT(B5=Adatok!C4)),"Havi csak CSOB-osan köthető!!!",F7*VLOOKUP(C5,Adatok!E4:G7,3,FALSE)) -> 0
A6: Éves díj | B6: Szorzó | C6: Szorzó | J6: Első díj
A7: =+IF(A5=Adatok!N4,Útravaló!E24,IF(A5=Adatok!N5,Útravaló!M40,"")) -> 0 | B7: =+VLOOKUP(B5,Adatok!C4:D6,2,FALSE) -> 1 | C7: =+VLOOKUP(C5,Adatok!E4:F7,2,FALSE) -> 1.12 | F7: =+A7*B7*C7 -> 0 | J7: =+IF(J5="Havi csak CSOB-osan köthető!!!","Havi csak CSOB-osan köthető!!!",J5*VLOOKUP(C5,Adatok!E4:I7,5,FALSE)) -> 0
A10: =+Adatok!N4 -> Magánszemély | B10: Kód | C10: Éves díj/darab | D10: Darabszám | E10: Éves díj | F10: Éves díj | G10: Fizetendő éves díj | I10: NEM Magánszemély | J10: Kód | K10: Éves díj/darab | L10: Darabszám | M10: Éves díj | N10: Fizetendő éves díj
A11: Segédmotoros kerékpár és motorkerékpár 500 cm³ alatt | B11: 1111 | C11: =+Adatok!B13 -> 13000 | D11: 2 | E11: =+IF(D11>0,D11*VLOOKUP(A11,Adatok!$A$12:$B$24,2,FALSE),0) -> 26000 | G11: =+E11*$B$7*$C$7 -> 29120 | I11: Segédmotoros kerékpár és motorkerékpár 500 cm³ alatt | J11: 2111 | K11: =+VLOOKUP(I11,Adatok!D13:E40,2,FALSE) -> 17000 | M11: =+IF(L11>0,L11*VLOOKUP(I11,Adatok!D11:E40,2,FALSE),0) -> 0 | N11: =+M11*$C$7*$B$7 -> 0
A12: Motorkerékpár 500 cm³ felett | B12: 1112 | C12: =+Adatok!B14 -> 17000 | E12: =+IF(D12>0,D12*VLOOKUP(A12,Adatok!$A$12:$B$24,2,FALSE),0) -> 0 | G12: =+E12*$B$7*$C$7 -> 0 | I12: Motorkerékpár 500 cm³ felett | J12: 2112 | K12: =+VLOOKUP(I12,Adatok!D14:E41,2,FALSE) -> 19000 | M12: =+IF(L12>0,L12*VLOOKUP(I12,Adatok!D12:E41,2,FALSE),0) -> 0 | N12: 0
A13: Személygépkocsi 1500 cm³ alatt | B13: 1213 | C13: =+Adatok!B15 -> 20000 | E13: =+IF(D13>0,D13*VLOOKUP(A13,Adatok!$A$12:$B$24,2,FALSE),0) -> 0 | G13: 0 | I13: Személygépkocsi 1500 cm³ alatt | J13: 2211 | K13: =+VLOOKUP(I13,Adatok!D15:E42,2,FALSE) -> 19000 | M13: =+IF(L13>0,L13*VLOOKUP(I13,Adatok!D13:E42,2,FALSE),0) -> 0 | N13: 0
A14: Személygépkocsi 1500 cm³ felett | B14: 1214 | C14: =+Adatok!B16 -> 25000 | E14: =+IF(D14>0,D14*VLOOKUP(A14,Adatok!$A$12:$B$24,2,FALSE),0) -> 0 | G14: 0 | I14: Személygépkocsi 1500 cm³ felett | J14: 2212 | K14: =+VLOOKUP(I14,Adatok!D16:E43,2,FALSE) -> 24000 | M14: =+IF(L14>0,L14*VLOOKUP(I14,Adatok!D14:E43,2,FALSE),0) -> 0 | N14: 0
A15: Lakókocsi | B15: 1311 | C15: =+Adatok!B17 -> 17000 | E15: =+IF(D15>0,D15*VLOOKUP(A15,Adatok!$A$12:$B$24,2,FALSE),0) -> 0 | G15: 0 | I15: Lakókocsi | J15: 2311 | K15: =+VLOOKUP(I15,Adatok!D17:E44,2,FALSE) -> 24000 | M15: =+IF(L15>0,L15*VLOOKUP(I15,Adatok!D15:E44,2,FALSE),0) -> 0 | N15: 0
A16: Tehergépkocsi 3,5 t teherbírás* alatt | B16: 1411 | C16: =+Adatok!B18 -> 27000 | E16: =+IF(D16>0,D16*VLOOKUP(A16,Adatok!$A$12:$B$24,2,FALSE),0) -> 0 | G16: 0 | I16: Tehergépkocsi 3,5 t teherbírás alatt | J16: 2411 | K16: =+VLOOKUP(I16,Adatok!D18:E45,2,FALSE) -> 30000 | M16: =+IF(L16>0,L16*VLOOKUP(I16,Adatok!D16:E45,2,FALSE),0) -> 0 | N16: 0
A17: Tehergépkocsi 3,5 t - 12 t teherbírás* között | B17: 1412 | C17: =+Adatok!B19 -> 33000 | D17: 2 | E17: =+IF(D17>0,D17*VLOOKUP(A17,Adatok!$A$12:$B$24,2,FALSE),0) -> 66000 | G17: 73920 | I17: Tehergépkocsi 3,5 t - 12 t teherbírás között | J17: 2412 | K17: =+VLOOKUP(I17,Adatok!D19:E46,2,FALSE) -> 37000 | M17: =+IF(L17>0,L17*VLOOKUP(I17,Adatok!D17:E46,2,FALSE),0) -> 0 | N17: 0
A18: Személygépkocsi utánfutó | B18: 1511 | C18: =+Adatok!B20 -> 6500 | E18: =+IF(D18>0,D18*VLOOKUP(A18,Adatok!$A$12:$B$24,2,FALSE),0) -> 0 | G18: =+E18*$B$7*$C$7 -> 0 | I18: Tehergépkocsi 12 t teherbírás felett | J18: 2413 | K18: =+VLOOKUP(I18,Adatok!D20:E47,2,FALSE) -> 50000 | M18: =+IF(L18>0,L18*VLOOKUP(I18,Adatok!D18:E47,2,FALSE),0) -> 0 | N18: 0
A19: Lakókocsi utánfutó | B19: 1512 | C19: =+Adatok!B21 -> 8500 | E19: =+IF(D19>0,D19*VLOOKUP(A19,Adatok!$A$12:$B$24,2,FALSE),0) -> 0 | G19: 0 | I19: Nyerges vontató | J19: 2414 | K19: =+VLOOKUP(I19,Adatok!D21:E48,2,FALSE) -> 52000 | M19: =+IF(L19>0,L19*VLOOKUP(I19,Adatok!D19:E48,2,FALSE),0) -> 0 | N19: 0
A20: Motorcsónak 100 KW teljesítmény alatt és scooter | B20: 1711 | C20: =+Adatok!B22 -> 20000 | D20: 2 | E20: =+IF(D20>0,D20*VLOOKUP(A20,Adatok!$A$12:$B$24,2,FALSE),0) -> 40000 | G20: 44800 | I20: Személygépkocsi utánfutó | J20: 2511 | K20: =+VLOOKUP(I20,Adatok!D22:E49,2,FALSE) -> 7500 | M20: =+IF(L20>0,L20*VLOOKUP(I20,Adatok!D20:E49,2,FALSE),0) -> 0 | N20: 0
A21: Motorcsónak 100 KW -150 KW teljesítmény között | B21: 1712 | C21: =+Adatok!B23 -> 42000 | E21: =+IF(D21>0,D21*VLOOKUP(A21,Adatok!$A$12:$B$24,2,FALSE),0) -> 0 | G21: 0 | I21: Lakókocsi utánfutó | J21: 2512 | K21: =+VLOOKUP(I21,Adatok!D23:E50,2,FALSE) -> 12000 | M21: =+IF(L21>0,L21*VLOOKUP(I21,Adatok!D21:E50,2,FALSE),0) -> 0 | N21: 0
A22: Rendszám nélküli mezőgazdasági és erdei jármű, traktor | B22: 1811 | C22: =+Adatok!B24 -> 8500 | D22: 2 | E22: =+IF(D22>0,D22*VLOOKUP(A22,Adatok!$A$12:$B$24,2,FALSE),0) -> 17000 | G22: 19040 | I22: Tehergépkocsi utánfutó | J22: 2513 | K22: =+VLOOKUP(I22,Adatok!D24:E51,2,FALSE) -> 13000 | M22: =+IF(L22>0,L22*VLOOKUP(I22,Adatok!D22:E51,2,FALSE),0) -> 0 | N22: 0
I23: Nyerges vontató utánfutó | J23: 2514 | K23: =+VLOOKUP(I23,Adatok!D25:E52,2,FALSE) -> 22000 | M23: =+IF(L23>0,L23*VLOOKUP(I23,Adatok!D23:E52,2,FALSE),0) -> 0 | N23: 0
A24: Összesen | D24: =+SUM(D11:D22) -> 8 | E24: =+SUM(E11:E22) -> 149000 | F24: =+SUM(F11:F22) -> 0 | G24: 166880 | I24: Autóbusz 20 férőhelyig | J24: 2611 | K24: =+VLOOKUP(I24,Adatok!D26:E53,2,FALSE) -> 34000 | M24: =+IF(L24>0,L24*VLOOKUP(I24,Adatok!D24:E53,2,FALSE),0) -> 0 | N24: 0
I25: Autóbusz 20 férőhely felett | J25: 2612 | K25: =+VLOOKUP(I25,Adatok!D27:E54,2,FALSE) -> 73000 | M25: =+IF(L25>0,L25*VLOOKUP(I25,Adatok!D25:E54,2,FALSE),0) -> 0 | N25: 0
I26: Motorcsónak 100 KW teljesítmény alatt és scooter | J26: 2711 | K26: =+VLOOKUP(I26,Adatok!D28:E55,2,FALSE) -> 27000 | M26: =+IF(L26>0,L26*VLOOKUP(I26,Adatok!D26:E55,2,FALSE),0) -> 0 | N26: 0
I27: Motorcsónak 100 KW - 150 KW teljesítmény között | J27: 2712 | K27: =+VLOOKUP(I27,Adatok!D29:E56,2,FALSE) -> 80000 | M27: =+IF(L27>0,L27*VLOOKUP(I27,Adatok!D27:E56,2,FALSE),0) -> 0 | N27: 0
I28: Rendszám nélküli mezőgazdasági és erdei jármű, traktor | J28: 2811 | K28: =+VLOOKUP(I28,Adatok!D30:E57,2,FALSE) -> 15000 | M28: =+IF(L28>0,L28*VLOOKUP(I28,Adatok!D28:E57,2,FALSE),0) -> 0 | N28: 0
I29: Taxi | J29: 2911 | K29: =+VLOOKUP(I29,Adatok!D31:E58,2,FALSE) -> 68000 | M29: =+IF(L29>0,L29*VLOOKUP(I29,Adatok!D29:E58,2,FALSE),0) -> 0 | N29: 0
I30: Bérautó | J30: 2913 | K30: =+VLOOKUP(I30,Adatok!D32:E59,2,FALSE) -> 37000 | M30: =+IF(L30>0,L30*VLOOKUP(I30,Adatok!D30:E59,2,FALSE),0) -> 0 | N30: 0
I31: Autós iskola motorkerékpárja (segédmotoros és cm³-től független) | J31: 2920 | K31: =+VLOOKUP(I31,Adatok!D33:E60,2,FALSE) -> 17000 | M31: =+IF(L31>0,L31*VLOOKUP(I31,Adatok!D31:E60,2,FALSE),0) -> 0 | N31: 0
I32: Autós iskola személygépkocsija | J32: 2914 | K32: =+VLOOKUP(I32,Adatok!D34:E61,2,FALSE) -> 41000 | M32: =+IF(L32>0,L32*VLOOKUP(I32,Adatok!D32:E61,2,FALSE),0) -> 0 | N32: 0
I33: Autós iskola tehergépkocsija | J33: 2915 | K33: =+VLOOKUP(I33,Adatok!D35:E62,2,FALSE) -> 36000 | M33: =+IF(L33>0,L33*VLOOKUP(I33,Adatok!D33:E62,2,FALSE),0) -> 0 | N33: 0
I34: Autós iskola autóbusza (férőhelytől függetlenül) | J34: 2921 | K34: =+VLOOKUP(I34,Adatok!D36:E63,2,FALSE) -> 52000 | M34: =+IF(L34>0,L34*VLOOKUP(I34,Adatok!D34:E63,2,FALSE),0) -> 0 | N34: 0
I35: Futárszolgálat személygépkocsija | J35: 2916 | K35: =+VLOOKUP(I35,Adatok!D37:E64,2,FALSE) -> 36000 | M35: =+IF(L35>0,L35*VLOOKUP(I35,Adatok!D35:E64,2,FALSE),0) -> 0 | N35: 0
I36: Futárszolgálat motorkerékpárja | J36: 2917 | K36: =+VLOOKUP(I36,Adatok!D38:E65,2,FALSE) -> 22000 | M36: =+IF(L36>0,L36*VLOOKUP(I36,Adatok!D36:E65,2,FALSE),0) -> 0 | N36: 0
I37: Futárszolgálat tehergépkocsija 3,5 t teherbírás alatt | J37: 2918 | K37: =+VLOOKUP(I37,Adatok!D39:E66,2,FALSE) -> 36000 | M37: =+IF(L37>0,L37*VLOOKUP(I37,Adatok!D37:E66,2,FALSE),0) -> 0 | N37: 0
I38: Futárszolgálat tehergépkocsija 3,5 t - 12 t teherbírás között | J38: 2919 | K38: =+VLOOKUP(I38,Adatok!D40:E67,2,FALSE) -> 44000 | M38: =+IF(L38>0,L38*VLOOKUP(I38,Adatok!D38:E67,2,FALSE),0) -> 0 | N38: 0
I40: Összesen | L40: =+SUM(L11:L38) -> 0 | M40: =+SUM(M11:M38) -> 0 | N40: 0

Sheet Átdolgozás, töredékdíj (hidden)
A1: Ezzel azt lehet számolni, hogy ha megyzűnik egy szerződés, mekkora töredékdíjat kell fizetni ahhoz, hogy jogfolytonos legyen.
A4: Előzmény szerz. Megszűnése | B4: 2015-03-30
A5: Új szerz. Kockázatviselés kezdete | B5: 2019-07-30
A6: Megszűnt szerződés fizetendő éves díja | B6: 66666666
A7: Díj/nap | B7: =+ROUNDUP(B6/360,2) -> 185185.19
A8: nap | B8: =+B5-B4 -> 1583
A9: Fizetendő | B9: =+B7*DAYS360(B4,B5,TRUE) -> 288888896.4

Sheet Indexálás visszavonása (hidden)
A2: Indexálás visszavonása
B3: Index visszavonás előtt | F3: Indexálás mértéke | G3: Indexálás visszavonás utáni éves díj | H3: Index visszavonás után
A4: Aktuális éves díj | B4: Fizetési mód | C4: Fizetési gyakoriság | D4: HÍD | E4: HÍD további gépjármű darabszám | H4: Fizetési mód | I4: Fizetési gyakoriság
A5: 45000000 | B5: Csekkes | C5: Éves | D5: Nem | E5: 0 | F5: =Adatok!H15 -> 0.04 | G5: =+ROUND(A5/(100%+F5),0) -> 43269231 | H5: Átutalásos | I5: Éves
A6: Aktuális fizetendő éves díj | B6: Szorzó | C6: Szorzó | D6: Ár | E6: Ár | H6: Szorzó | I6: Szorzó
A7: =+A5*B7*C7 -> 46125000 | B7: =+VLOOKUP(B5,Adatok!C4:D6,2,FALSE) -> 1.025 | C7: =+VLOOKUP(C5,Adatok!E4:F7,2,FALSE) -> 1 | D7: =+ROUND(IF(NOT(ISBLANK(D5)),VLOOKUP(D5,Adatok!J4:K5,2,FALSE),0)*VLOOKUP(C5,Adatok!E5:F7,2,FALSE)*VLOOKUP(B5,Adatok!C4:D6,2,FALSE),0) ->  | E7: =+IF(NOT(ISBLANK(E5)),E5*Adatok!L4,0)*VLOOKUP(C5,Adatok!E5:F7,2,FALSE)*VLOOKUP(B5,Adatok!C4:D6,2,FALSE) ->  | H7: =+VLOOKUP(H5,Adatok!C4:D6,2,FALSE) -> 1.025 | I7: =+VLOOKUP(I5,Adatok!E4:F7,2,FALSE) -> 1
H9: Gyakoriság szerint fizetendő díj | I9: Fizetendő éves díj
H10: =+I10*VLOOKUP(C5,Adatok!E4:G7,3,FALSE) -> 44350961.77 | I10: =+G5*H7*I7 -> 44350961.77

Sheet Útravaló díj (hidden)
A1: D.A.S. Jogvédelmi Biztosító Zrt. 1082 Budapest, Futó utca 47-53. Tel.: +36 1 486 3600 info@das.hu - www.das.hu
A11: =IF(Útravaló!A5="magánszemély","ÚTRAVALÓ INDIKATÍV ÁRAJÁNLAT MAGÁNSZEMÉLY RÉSZÉRE","ÚTRAVALÓ INDIKATÍV ÁRAJÁNLAT VÁLLALKOZÁS RÉSZÉRE") -> ÚTRAVALÓ INDIKATÍV ÁRAJÁNLAT VÁLLALKOZÁS RÉSZÉRE
A13: Ajánlatkérés adatai:
A14: =IF(Útravaló!A5="Nem magánszemély","Cég neve","Ügyfél neve") -> Cég neve
A15: =IF(Útravaló!A5="nem magánszemély","Cég székhelye","Ügyfél állandó címe") -> Cég székhelye
A16: =IF(Útravaló!A5="nem magánszemély","Cég adószáma","Ügyfél telefonszáma") -> Cég adószáma
A17: =IF(Útravaló!A5="nem magánszemély","Kapcsolattartó neve","Email cím") -> Kapcsolattartó neve
A18: =IF(Útravaló!A5="nem magánszemély","Kapcsolattartó telefonszáma","") -> Kapcsolattartó telefonszáma
A19: =IF(Útravaló!A5="nem magánszemély","Email cím","") -> Email cím
A20: Fizetési mód | B20: =IF(Útravaló!A5="nem magánszemély",Útravaló!B5,Útravaló!B5) -> Csoportos | D20: =+IF(Útravaló!C5="Éves","",IF(Útravaló!J5<10000,"A Gyakoriság szerint fizetendő díj nem lehet 10.000 Forint alatt!","")) -> A Gyakoriság szerint fizetendő díj nem lehet 10.000 Forint alatt!
A21: Fizetési gyakoriság | B21: =IF(Útravaló!A5="nem magánszemély",Útravaló!C5,Útravaló!C5) -> Havi
A26: GÉPJÁRMŰ ÖSSZESÍTÉS
A30: Gépjármű típus | D30: Kód | E30: Éves díj/darab | F30: Darabszám | G30: Éves díj | H30: Fizetendő éves díj
A31: Segédmotoros kerékpár és motorkerékpár 500 cm³ alatt | D31: =IF(Útravaló!A5="nem magánszemély",Útravaló!J11,Útravaló!B11) -> 2111 | E31: =IF(Útravaló!A5="nem magánszemély",Útravaló!K11,Útravaló!C11) -> 17000 | F31: =IF(Útravaló!A5="nem magánszemély",Útravaló!L11,Útravaló!D11) -> 0 | G31: =IF(Útravaló!A5="nem magánszemély",Útravaló!M11,Útravaló!E11) -> 0 | H31: =IF(Útravaló!A5="nem magánszemély",Útravaló!N11,Útravaló!G11) -> 0
A32: Motorkerékpár 500 cm³ felett | D32: =IF(Útravaló!A5="nem magánszemély",Útravaló!J12,Útravaló!B12) -> 2112 | E32: =IF(Útravaló!A5="nem magánszemély",Útravaló!K12,Útravaló!C12) -> 19000 | F32: =IF(Útravaló!A5="nem magánszemély",Útravaló!L12,Útravaló!D12) -> 0 | G32: =IF(Útravaló!A5="nem magánszemély",Útravaló!M12,Útravaló!E12) -> 0 | H32: =IF(Útravaló!A5="nem magánszemély",Útravaló!N12,Útravaló!G12) -> 0
A33: Személygépkocsi 1500 cm³ alatt | B33: Személygépkocsi 1500 cm³ alatt | C33: Személygépkocsi 1500 cm³ alatt | D33: =IF(Útravaló!A5="nem magánszemély",Útravaló!J13,Útravaló!B13) -> 2211 | E33: =IF(Útravaló!A5="nem magánszemély",Útravaló!K13,Útravaló!C13) -> 19000 | F33: =IF(Útravaló!A5="nem magánszemély",Útravaló!L13,Útravaló!D13) -> 0 | G33: =IF(Útravaló!A5="nem magánszemély",Útravaló!M13,Útravaló!E13) -> 0 | H33: =IF(Útravaló!A5="nem magánszemély",Útravaló!N13,Útravaló!G13) -> 0
A34: Személygépkocsi 1500 cm³ felett | B34: Személygépkocsi 1500 cm³ felett | C34: Személygépkocsi 1500 cm³ felett | D34: =IF(Útravaló!A5="nem magánszemély",Útravaló!J14,Útravaló!B14) -> 2212 | E34: =IF(Útravaló!A5="nem magánszemély",Útravaló!K14,Útravaló!C14) -> 24000 | F34: =IF(Útravaló!A5="nem magánszemély",Útravaló!L14,Útravaló!D14) -> 0 | G34: =IF(Útravaló!A5="nem magánszemély",Útravaló!M14,Útravaló!E14) -> 0 | H34: =IF(Útravaló!A5="nem magánszemély",Útravaló!N14,Útravaló!G14) -> 0
A35: Lakókocsi | B35: Lakókocsi | C35: Lakókocsi | D35: =IF(Útravaló!A5="nem magánszemély",Útravaló!J15,Útravaló!B15) -> 2311 | E35: =IF(Útravaló!A5="nem magánszemély",Útravaló!K15,Útravaló!C15) -> 24000 | F35: =IF(Útravaló!A5="nem magánszemély",Útravaló!L15,Útravaló!D15) -> 0 | G35: =IF(Útravaló!A5="nem magánszemély",Útravaló!M15,Útravaló!E15) -> 0 | H35: =IF(Útravaló!A5="nem magánszemély",Útravaló!N15,Útravaló!G15) -> 0
A36: Tehergépkocsi 3,5 t teherbírás alatt | B36: Tehergépkocsi 3,5 t teherbírás alatt | C36: Tehergépkocsi 3,5 t teherbírás alatt | D36: =IF(Útravaló!A5="nem magánszemély",Útravaló!J16,Útravaló!B16) -> 2411 | E36: =IF(Útravaló!A5="nem magánszemély",Útravaló!K16,Útravaló!C16) -> 30000 | F36: =IF(Útravaló!A5="nem magánszemély",Útravaló!L16,Útravaló!D16) -> 0 | G36: =IF(Útravaló!A5="nem magánszemély",Útravaló!M16,Útravaló!E16) -> 0 | H36: =IF(Útravaló!A5="nem magánszemély",Útravaló!N16,Útravaló!G16) -> 0
A37: Tehergépkocsi 3,5 t - 12 t teherbírás között | D37: =IF(Útravaló!A5="nem magánszemély",Útravaló!J17,Útravaló!B17) -> 2412 | E37: =IF(Útravaló!A11="nem magánszemély",Útravaló!K17,Útravaló!C17) -> 33000 | F37: =IF(Útravaló!A5="nem magánszemély",Útravaló!L17,Útravaló!D17) -> 0 | G37: =IF(Útravaló!A5="nem magánszemély",Útravaló!M17,Útravaló!E17) -> 0 | H37: =IF(Útravaló!A5="nem magánszemély",Útravaló!N17,Útravaló!G17) -> 0
A38: =IF(Útravaló!A5="nem magánszemély","Tehergépkocsi 12 t teherbírás felett","Személygépkocsi utánfutó") -> Tehergépkocsi 12 t teherbírás felett | D38: =IF(Útravaló!A5="nem magánszemély",Útravaló!J18,Útravaló!B18) -> 2413 | E38: =IF(Útravaló!A5="nem magánszemély",Útravaló!K18,Útravaló!C18) -> 50000 | F38: =IF(Útravaló!A5="nem magánszemély",Útravaló!L18,Útravaló!D18) -> 0 | G38: =IF(Útravaló!A5="nem magánszemély",Útravaló!M18,Útravaló!E18) -> 0 | H38: =IF(Útravaló!A5="nem magánszemély",Útravaló!N18,Útravaló!G18) -> 0
A39: =IF(Útravaló!A5="nem magánszemély","Nyerges vontató","Lakókocsi utánfutó") -> Nyerges vontató | B39: Nyerges vontató | C39: Nyerges vontató | D39: =IF(Útravaló!A5="nem magánszemély",Útravaló!J19,Útravaló!B19) -> 2414 | E39: =IF(Útravaló!A5="nem magánszemély",Útravaló!K19,Útravaló!C19) -> 52000 | F39: =IF(Útravaló!A5="nem magánszemély",Útravaló!L19,Útravaló!D19) -> 0 | G39: =IF(Útravaló!A5="nem magánszemély",Útravaló!M19,Útravaló!E19) -> 0 | H39: =IF(Útravaló!A5="nem magánszemély",Útravaló!N19,Útravaló!G19) -> 0
A40: =IF(Útravaló!A5="nem magánszemély","Személygépkocsi utánfutó","Motorcsónak 100 KW teljesítmény alatt és scooter") -> Személygépkocsi utánfutó | B40: Személygépkocsi utánfutó | C40: Személygépkocsi utánfutó | D40: =IF(Útravaló!A5="nem magánszemély",Útravaló!J20,Útravaló!B20) -> 2511 | E40: =IF(Útravaló!A5="nem magánszemély",Útravaló!K20,Útravaló!C20) -> 7500 | F40: =IF(Útravaló!A5="nem magánszemély",Útravaló!L20,Útravaló!D20) -> 0 | G40: =IF(Útravaló!A5="nem magánszemély",Útravaló!M20,Útravaló!E20) -> 0 | H40: =IF(Útravaló!A5="nem magánszemély",Útravaló!N20,Útravaló!G20) -> 0
A41: =IF(Útravaló!A5="nem magánszemély","Lakókocsi utánfutó","Motorcsónak 100 KW - 150 KW teljesítmény között") -> Lakókocsi utánfutó | B41: Lakókocsi utánfutó | C41: Lakókocsi utánfutó | D41: =IF(Útravaló!A5="nem magánszemély",Útravaló!J21,Útravaló!B21) -> 2512 | E41: =IF(Útravaló!A5="nem magánszemély",Útravaló!K21,Útravaló!C21) -> 12000 | F41: =IF(Útravaló!A5="nem magánszemély",Útravaló!L21,Útravaló!D21) -> 0 | G41: =IF(Útravaló!A5="nem magánszemély",Útravaló!M21,Útravaló!E21) -> 0 | H41: =IF(Útravaló!A5="nem magánszemély",Útravaló!N21,Útravaló!G21) -> 0
A42: =IF(Útravaló!A5="nem magánszemély","Tehergépkocsi utánfutó","Rendszám nélküli mezőgazdasági és erdei jármű, traktor") -> Tehergépkocsi utánfutó | B42: Tehergépkocsi utánfutó | C42: Tehergépkocsi utánfutó | D42: =IF(Útravaló!A5="nem magánszemély",Útravaló!J22,Útravaló!B22) -> 2513 | E42: =IF(Útravaló!A5="nem magánszemély",Útravaló!K22,Útravaló!C22) -> 13000 | F42: =IF(Útravaló!A5="nem magánszemély",Útravaló!L22,Útravaló!D22) -> 0 | G42: =IF(Útravaló!A5="nem magánszemély",Útravaló!M22,Útravaló!E22) -> 0 | H42: =IF(Útravaló!A5="nem magánszemély",Útravaló!N22,Útravaló!G22) -> 0
A43: =IF(Útravaló!A5="nem magánszemély","Nyerges vontató utánfutó","") -> Nyerges vontató utánfutó | B43: Nyerges vontató utánfutó | C43: Nyerges vontató utánfutó | D43: =IF(Útravaló!A5="nem magánszemély",Útravaló!J23,"") -> 2514 | E43: =IF(Útravaló!A5="nem magánszemély",Útravaló!K23,"") -> 22000 | F43: =IF(Útravaló!A5="nem magánszemély",Útravaló!L23,"") -> 0 | G43: =IF(Útravaló!A5="nem magánszemély",Útravaló!M23,"") -> 0 | H43: =IF(Útravaló!A5="nem magánszemély",Útravaló!N23,"") -> 0
A44: =IF(Útravaló!A5="nem magánszemély","Autóbusz 20 férőhelyig","") -> Autóbusz 20 férőhelyig | B44: Autóbusz 20 férőhelyig | C44: Autóbusz 20 férőhelyig | D44: =IF(Útravaló!A5="nem magánszemély",Útravaló!J24,"") -> 2611 | E44: =IF(Útravaló!A5="nem magánszemély",Útravaló!K24,"Összesen") -> 34000 | F44: =IF(Útravaló!A5="nem magánszemély",Útravaló!L24,Útravaló!D24) -> 0 | G44: =IF(Útravaló!A5="nem magánszemély",Útravaló!M24,Útravaló!E24) -> 0 | H44: =IF(Útravaló!A5="nem magánszemély",Útravaló!N24,Útravaló!G24) -> 0
A45: =IF(Útravaló!A5="nem magánszemély",Útravaló!I25,"") -> Autóbusz 20 férőhely felett | B45: Autóbusz 20 férőhely felett | C45: Autóbusz 20 férőhely felett | D45: =IF(Útravaló!A5="nem magánszemély",Útravaló!J25,"") -> 2612 | E45: =IF(Útravaló!A5="nem magánszemély",Útravaló!K25,"") -> 73000 | F45: =IF(Útravaló!A5="nem magánszemély",Útravaló!L25,"") -> 0 | G45: =IF(Útravaló!A5="nem magánszemély",Útravaló!M25,"") -> 0 | H45: =IF(Útravaló!A5="nem magánszemély",Útravaló!N25,"") -> 0
A46: =IF(Útravaló!A5="nem magánszemély",Útravaló!I26,"Gyakoriság szerint fizetendő díj") -> Motorcsónak 100 KW teljesítmény alatt és scooter | B46: Autóbusz 20 férőhely felett | C46: Autóbusz 20 férőhely felett | D46: =IF(Útravaló!A5="nem magánszemély",Útravaló!J26,"") -> 2711 | E46: =IF(Útravaló!A5="nem magánszemély",Útravaló!K26,Útravaló!J5) -> 27000 | F46: =IF(Útravaló!A5="nem magánszemély",Útravaló!L26,"") -> 0 | G46: =IF(Útravaló!A5="nem magánszemély",Útravaló!M26,"") -> 0 | H46: =IF(Útravaló!A5="nem magánszemély",Útravaló!N26,"") -> 0
A47: =IF(Útravaló!A5="nem magánszemély",Útravaló!I27,"Első díj") -> Motorcsónak 100 KW - 150 KW teljesítmény között | B47: Autóbusz 20 férőhely felett | C47: Autóbusz 20 férőhely felett | D47: =IF(Útravaló!A5="nem magánszemély",Útravaló!J27,"") -> 2712 | E47: =IF(Útravaló!A5="nem magánszemély",Útravaló!K27,Útravaló!J7) -> 80000 | F47: =IF(Útravaló!A5="nem magánszemély",Útravaló!L27,"") -> 0 | G47: =IF(Útravaló!A5="nem magánszemély",Útravaló!M27,"") -> 0 | H47: =IF(Útravaló!A5="nem magánszemély",Útravaló!N27,"") -> 0
A48: =IF(Útravaló!A5="nem magánszemély",Útravaló!I28,"") -> Rendszám nélküli mezőgazdasági és erdei jármű, traktor | B48: Autóbusz 20 férőhely felett | C48: Autóbusz 20 férőhely felett | D48: =IF(Útravaló!A5="nem magánszemély",Útravaló!J28,"") -> 2811 | E48: =IF(Útravaló!A5="nem magánszemély",Útravaló!K28,"") -> 15000 | F48: =IF(Útravaló!A5="nem magánszemély",Útravaló!L28,"") -> 0 | G48: =IF(Útravaló!A5="nem magánszemély",Útravaló!M28,"") -> 0 | H48: =IF(Útravaló!A5="nem magánszemély",Útravaló!N28,"") -> 0
A49: =IF(Útravaló!A5="nem magánszemély",Útravaló!I29,"") -> Taxi | B49: Autóbusz 20 férőhely felett | C49: Autóbusz 20 férőhely felett | D49: =IF(Útravaló!A5="nem magánszemély",Útravaló!J29,"") -> 2911 | E49: =IF(Útravaló!A5="nem magánszemély",Útravaló!K29,"") -> 68000 | F49: =IF(Útravaló!A5="nem magánszemély",Útravaló!L29,"") -> 0 | G49: =IF(Útravaló!A5="nem magánszemély",Útravaló!M29,"") -> 0 | H49: =IF(Útravaló!A5="nem magánszemély",Útravaló!N29,"") -> 0
A50: =IF(Útravaló!A5="nem magánszemély",Útravaló!I30,"") -> Bérautó | B50: Autóbusz 20 férőhely felett | C50: Autóbusz 20 férőhely felett | D50: =IF(Útravaló!A5="nem magánszemély",Útravaló!J30,"") -> 2913 | E50: =IF(Útravaló!A5="nem magánszemély",Útravaló!K30,"") -> 37000 | F50: =IF(Útravaló!A5="nem magánszemély",Útravaló!L30,"") -> 0 | G50: =IF(Útravaló!A5="nem magánszemély",Útravaló!M30,"") -> 0 | H50: =IF(Útravaló!A5="nem magánszemély",Útravaló!N30,"") -> 0
A51: =IF(Útravaló!A5="nem magánszemély",Útravaló!I31,"") -> Autós iskola motorkerékpárja (segédmotoros és cm³-től független) | B51: Autóbusz 20 férőhely felett | C51: Autóbusz 20 férőhely felett | D51: =IF(Útravaló!A5="nem magánszemély",Útravaló!J31,"") -> 2920 | E51: =IF(Útravaló!A5="nem magánszemély",Útravaló!K31,"") -> 17000 | F51: =IF(Útravaló!A5="nem magánszemély",Útravaló!L31,"") -> 0 | G51: =IF(Útravaló!A5="nem magánszemély",Útravaló!M31,"") -> 0 | H51: =IF(Útravaló!A5="nem magánszemély",Útravaló!N31,"") -> 0
A52: =IF(Útravaló!A5="nem magánszemély",Útravaló!I32,"") -> Autós iskola személygépkocsija | B52: Autóbusz 20 férőhely felett | C52: Autóbusz 20 férőhely felett | D52: =IF(Útravaló!A5="nem magánszemély",Útravaló!J32,"") -> 2914 | E52: =IF(Útravaló!A5="nem magánszemély",Útravaló!K32,"") -> 41000 | F52: =IF(Útravaló!A5="nem magánszemély",Útravaló!L32,"") -> 0 | G52: =IF(Útravaló!A5="nem magánszemély",Útravaló!M32,"") -> 0 | H52: =IF(Útravaló!A5="nem magánszemély",Útravaló!N32,"") -> 0
A53: =IF(Útravaló!A5="nem magánszemély",Útravaló!I33,"") -> Autós iskola tehergépkocsija | B53: Autóbusz 20 férőhely felett | C53: Autóbusz 20 férőhely felett | D53: =IF(Útravaló!A5="nem magánszemély",Útravaló!J33,"") -> 2915 | E53: =IF(Útravaló!A5="nem magánszemély",Útravaló!K33,"") -> 36000 | F53: =IF(Útravaló!A5="nem magánszemély",Útravaló!L33,"") -> 0 | G53: =IF(Útravaló!A5="nem magánszemély",Útravaló!M33,"") -> 0 | H53: =IF(Útravaló!A5="nem magánszemély",Útravaló!N33,"") -> 0
A54: =IF(Útravaló!A5="nem magánszemély",Útravaló!I34,"") -> Autós iskola autóbusza (férőhelytől függetlenül) | B54: Autóbusz 20 férőhely felett | C54: Autóbusz 20 férőhely felett | D54: =IF(Útravaló!A5="nem magánszemély",Útravaló!J34,"") -> 2921 | E54: =IF(Útravaló!A5="nem magánszemély",Útravaló!K34,"") -> 52000 | F54: =IF(Útravaló!A5="nem magánszemély",Útravaló!L34,"") -> 0 | G54: =IF(Útravaló!A5="nem magánszemély",Útravaló!M34,"") -> 0 | H54: =IF(Útravaló!A5="nem magánszemély",Útravaló!N34,"") -> 0
A55: =IF(Útravaló!A5="nem magánszemély",Útravaló!I35,"") -> Futárszolgálat személygépkocsija | B55: Autóbusz 20 férőhely felett | C55: Autóbusz 20 férőhely felett | D55: =IF(Útravaló!A5="nem magánszemély",Útravaló!J35,"") -> 2916 | E55: =IF(Útravaló!A5="nem magánszemély",Útravaló!K35,"") -> 36000 | F55: =IF(Útravaló!A5="nem magánszemély",Útravaló!L35,"") -> 0 | G55: =IF(Útravaló!A5="nem magánszemély",Útravaló!M35,"") -> 0 | H55: =IF(Útravaló!A5="nem magánszemély",Útravaló!N35,"") -> 0
A56: =IF(Útravaló!A5="nem magánszemély",Útravaló!I36,"") -> Futárszolgálat motorkerékpárja | B56: Autóbusz 20 férőhely felett | C56: Autóbusz 20 férőhely felett | D56: =IF(Útravaló!A5="nem magánszemély",Útravaló!J36,"") -> 2917 | E56: =IF(Útravaló!A5="nem magánszemély",Útravaló!K36,"") -> 22000 | F56: =IF(Útravaló!A5="nem magánszemély",Útravaló!L36,"") -> 0 | G56: =IF(Útravaló!A5="nem magánszemély",Útravaló!M36,"") -> 0 | H56: =IF(Útravaló!A5="nem magánszemély",Útravaló!N36,"") -> 0
A57: =IF(Útravaló!A5="nem magánszemély",Útravaló!I37,"") -> Futárszolgálat tehergépkocsija 3,5 t teherbírás alatt | B57: Autóbusz 20 férőhely felett | C57: Autóbusz 20 férőhely felett | D57: =IF(Útravaló!A5="nem magánszemély",Útravaló!J37,"") -> 2918 | E57: =IF(Útravaló!A5="nem magánszemély",Útravaló!K37,"") -> 36000 | F57: =IF(Útravaló!A5="nem magánszemély",Útravaló!L37,"") -> 0 | G57: =IF(Útravaló!A5="nem magánszemély",Útravaló!M37,"") -> 0 | H57: =IF(Útravaló!A5="nem magánszemély",Útravaló!N37,"") -> 0
A58: =IF(Útravaló!A5="nem magánszemély",Útravaló!I38,"") -> Futárszolgálat tehergépkocsija 3,5 t - 12 t teherbírás között | B58: Autóbusz 20 férőhely felett | C58: Autóbusz 20 férőhely felett | D58: =IF(Útravaló!A5="nem magánszemély",Útravaló!J38,"") -> 2919 | E58: =IF(Útravaló!A5="nem magánszemély",Útravaló!K38,"") -> 44000 | F58: =IF(Útravaló!A5="nem magánszemély",Útravaló!L38,"") -> 0 | G58: =IF(Útravaló!A5="nem magánszemély",Útravaló!M38,"") -> 0 | H58: =IF(Útravaló!A5="nem magánszemély",Útravaló!N38,"") -> 0
A60: =IF(Útravaló!A5="nem magánszemély","Összesen","") -> Összesen | F60: =IF(Útravaló!A5="nem magánszemély",Útravaló!L40,"") -> 0 | G60: =IF(Útravaló!A5="nem magánszemély",Útravaló!M40,"") -> 0 | H60: =IF(Útravaló!A5="nem magánszemély",Útravaló!N40,"") -> 0
A64: =IF(Útravaló!A5="nem magánszemély","Gyakoriság szerint fizetendő díj","") -> Gyakoriság szerint fizetendő díj | E64: =IF(Útravaló!A5="nem magánszemély",Útravaló!J5,"") -> 0
B65: =IF(Útravaló!A5="nem magánszemély","Első díj","") -> Első díj | E65: =IF(Útravaló!A5="nem magánszemély",Útravaló!J7,"") -> 0
A67: Díjajánlat kiadva: | B67: =TODAY() -> 2019-12-12
A70: Biztosításközvetítő neve:
A72: Figyelem:
A73: Felhívjuk szíves figyelmét, hogy jelen ajánlatunk indikatív jellegű, további tárgyalások alapjául szolgál, és nem jelent szerződéskötési kötelezettségvállalást a D.A.S. JogSzerviz részéről. Az alábbiakban ismertetett konstrukciókat a Társaságukról jelenleg rendelkezésünkre álló információk alapján, meghatározott feltételek fennállása esetén ajánljuk. Ajánlatunk a kiadástól számított 30 napig szolgál a köztünk lévő tárgyalás alapjának.

Sheet Színkódok (hidden)
I4: Legördülő lista* | J4: *Kattintás után jelenik meg a legördülő lista.
I8: Írható cella
I12: Összes fizetendő éves díj
I16: Gyakoriság szerint fizetendő díj
I20: Első díj
I24: Figyelmeztetés

Sheet Adatok (hidden)
A1: Classic termékek
A3: Terméknév | B3: Alapár | C3: Díjfiz mód | D3: Mód szorzó | E3: Díjfiz gyak | F3: Gyak szorzó | G3: Gyakoriság | H3: Éves gyak | I3: Elsődíj szorzó | J3: HÍD | L3: Híd további autó | N3: Szerződő | O3: Gépjárművezetői alapár
A4: Standard Classic | B4: 58000 | C4: Csoportos | D4: 1 | E4: Éves | F4: 1 | G4: 1 | H4: 1 | I4: 1 | J4: Igen | K4: 50000 | L4: 16000 | N4: Magánszemély | O4: 11000
A5: Médium Classic | B5: 78000 | C5: Átutalásos | D5: 1.025 | E5: Féléves | F5: 1.05 | G5: 0.5 | H5: 2 | I5: 1 | J5: Nem | K5: 0 | N5: NEM magánszemély | O5: 16000
A6: Prémium Classic | B6: 98000 | C6: Csekkes | D6: 1.025 | E6: Negyedéves | F6: 1.07 | G6: 0.25 | H6: 4 | I6: 1
A7: VIP Standard | B7: 154000 | E7: Havi | F7: 1.12 | G7: 0.08333333333 | H7: 12 | I7: 2
A8: VIP Médium | B8: 187000
A9: VIP Prémium | B9: 221000
A12: Magánszemély útravaló | B12: Alapár | D12: Nem magánszemély útravaló árak | G12: Indexálás | J12: 2010.07.26 előtt jött létre?
A13: Segédmotoros kerékpár és motorkerékpár 500 cm³ alatt | B13: 13000 | D13: Segédmotoros kerékpár és motorkerékpár 500 cm³ alatt | E13: 17000 | G13: 2014.07.01 előtt | H13: 0.07 | J13: igen
A14: Motorkerékpár 500 cm³ felett | B14: 17000 | D14: Motorkerékpár 500 cm³ felett | E14: 19000 | G14: 2014.07.01-2015.07.31 | H14: 0.0498 | J14: nem
A15: Személygépkocsi 1500 cm³ alatt | B15: 20000 | D15: Személygépkocsi 1500 cm³ alatt | E15: 19000 | G15: 2015.08.01 után | H15: 0.04
A16: Személygépkocsi 1500 cm³ felett | B16: 25000 | D16: Személygépkocsi 1500 cm³ felett | E16: 24000
A17: Lakókocsi | B17: 17000 | D17: Lakókocsi | E17: 24000
A18: Tehergépkocsi 3,5 t teherbírás* alatt | B18: 27000 | D18: Tehergépkocsi 3,5 t teherbírás alatt | E18: 30000 | G18: Jogtárs | I18: csomag
A19: Tehergépkocsi 3,5 t - 12 t teherbírás* között | B19: 33000 | D19: Tehergépkocsi 3,5 t - 12 t teherbírás között | E19: 37000 | G19: Vállalkozás | I19: Standard
A20: Személygépkocsi utánfutó | B20: 6500 | D20: Tehergépkocsi 12 t teherbírás felett | E20: 50000 | G20: Társasház | I20: Prémium
A21: Lakókocsi utánfutó | B21: 8500 | D21: Nyerges vontató | E21: 52000
A22: Motorcsónak 100 KW teljesítmény alatt és scooter | B22: 20000 | D22: Személygépkocsi utánfutó | E22: 7500 | G22: Vállalkozás
A23: Motorcsónak 100 KW -150 KW teljesítmény között | B23: 42000 | D23: Lakókocsi utánfutó | E23: 12000 | G23: Standard | M23: Prémium
A24: Rendszám nélküli mezőgazdasági és erdei jármű, traktor | B24: 8500 | D24: Tehergépkocsi utánfutó | E24: 13000 | H24: 0-30000000 | I24: 30000001-200000000 | J24: 200000001-500000000 | K24: 500000001-3000000000 | N24: 0-30000000 | O24: 30000001-200000000 | P24: 200000001-500000000 | Q24: 500000001-3000000000
D25: Nyerges vontató utánfutó | E25: 22000 | G25: 0-9 | H25: 126000 | I25: 313000 | J25: 376000 | K25: 439000 | M25: 0-9 | N25: 188000 | O25: 470000 | P25: 546000 | Q25: 658000
D26: Autóbusz 20 férőhelyig | E26: 34000 | G26: 10-49 | H26: 144000 | I26: 360000 | J26: 432000 | K26: 504000 | M26: 10-49 | N26: 216000 | O26: 540000 | P26: 648000 | Q26: 756000
A27: Jogtárs, Új jogtárs | D27: Autóbusz 20 férőhely felett | E27: 73000 | G27: 50-99 | H27: 163000 | I27: 407000 | J27: 489000 | K27: 570000 | M27: 50-99 | N27: 245000 | O27: 611000 | P27: 733000 | Q27: 855000
D28: Motorcsónak 100 KW teljesítmény alatt és scooter | E28: 27000 | G28: 100-249 | H28: 182000 | I28: 454000 | J28: 545000 | K28: 636000 | M28: 100-249 | N28: 273000 | O28: 681000 | P28: 817000 | Q28: 954000
D29: Motorcsónak 100 KW - 150 KW teljesítmény között | E29: 80000
D30: Rendszám nélküli mezőgazdasági és erdei jármű, traktor | E30: 15000
D31: Taxi | E31: 68000 | G31: 0 | H31: 9 | I31: 1
D32: Bérautó | E32: 37000 | G32: 10 | H32: 49 | I32: 2
D33: Autós iskola motorkerékpárja (segédmotoros és cm³-től független) | E33: 17000 | G33: 50 | H33: 99 | I33: 3
D34: Autós iskola személygépkocsija | E34: 41000 | G34: 100 | H34: 249 | I34: 4
D35: Autós iskola tehergépkocsija | E35: 36000
D36: Autós iskola autóbusza (férőhelytől függetlenül) | E36: 52000 | G36: 0 | H36: 30000000 | I36: 1
D37: Futárszolgálat személygépkocsija | E37: 36000 | G37: 30000001 | H37: 200000000 | I37: 2
D38: Futárszolgálat motorkerékpárja | E38: 22000 | G38: 200000001 | H38: 500000000 | I38: 3
D39: Futárszolgálat tehergépkocsija 3,5 t teherbírás alatt | E39: 36000 | G39: 500000001 | H39: 3000000000 | I39: 4
D40: Futárszolgálat tehergépkocsija 3,5 t - 12 t teherbírás között | E40: 44000

Sheet Változáskövetés (hidden)
A2: 2.0 | B2: 2015.03.09 | C2: Első kiadott verzió
A3: 2.1 | B3: 2015.04.22 | C3: 2015.augusztól az indexálás mértéke 4%
A4: 3.0 | B4: 2015.06.19 | C4: Szerződés módosítás beírható Éves díjjal
A5: 4.0 | B5: 2016.01.22 | C5: Havi fizetési gyakoriság
A6: 5.0 | B6: 2019-08-12 | C6: Átírás új excel fájlba, adatok frissítése
A7: 5.1 | B7: 2019-08-14 | C7: Jogtárs hozzáadása
A8: 5.2 | B8: 2019-08-14 | C8: Kisebb javítások, szerkesztés
A9: 5.3 | B9: 2019-08-15 | C9: Formázás
A10: 5.4 | B10: 2019-08-16 | C10: Formázás
A11: 6 | B11: 2019-10-29 | C11: Makrók hozzáadása

Sheet Flotta adatközlő (hidden)
A1: Útravaló Flotta adatközlő
A4: Biztosított adatai
A5: Cég neve | C5: =IF('Útravaló díj'!A14="cég neve",'Útravaló díj'!C14,"") -> 0
A6: Cég székhelye | C6: =IF('Útravaló díj'!A15="cég székhelye",'Útravaló díj'!C15,"") -> 0
A7: Cég adószáma | C7: =IF('Útravaló díj'!A16="cég adószáma",'Útravaló díj'!C16,"") -> 0 | F7: Ajánlat száma:
A9: Rendszám | B9: Gyártmány | C9: Típus | D9: KW | E9: Cm3 | F9: Teherbírás | G9: Termékszám | H9: Birtokviszony | I9: Éves alapdíj
A51: Dátum: | B51: =TODAY() -> 2019-12-12
B55: __________________________ | G55: ________________________
B56: Üzletkötő aláírása | G56: Ügyfél aláírása

Sheet Jogtárs engedély (hidden)
A1: D.A.S. Jogtárs Egyedi Engedély Kérelem
A5: Kérelem dátuma
A6: Étékesítő neve, kódja
A7: Termék neve
A8: Cég neve
A9: Cég székhelye
A10: Cég adószáma
A11: Alapítás éve
A12: Tulajdonos
A13: Fő tevékenység Teáor
A14: Egyéb tevékenység Teáor
A15: Utolsó 3 év dátum | C15: év | E15: év | G15: év
A16: Utolsó 3 év árbevétel összeg
A17: Dolgozói létszám utolsó 3 év | C17: fő | E17: fő | G17: fő
A18: Ingatlan darabszám
A20: Kérés
A25: Indoklás
A30: D.A.S Értékesítés véleménye:
C36: Üzletkötő aláírása

Sheet Jogtárs egyedi díj (hidden)
A1: D.A.S. Jogvédelmi Biztosító Zrt. 1082 Budapest, Futó utca 47-53. Tel.: +36 1 486 3600 info@das.hu - www.das.hu
A6: JOGTÁRS INDIKATÍV DÍJAJÁNLAT VÁLLALKOZÁSOKNAK
A8: Ajánlatkérő cég adatai:
A9: Cég neve:
A10: Cég székhelye
A11: Cég adószáma:
A12: Tevékenység TEÁOR:
A15: Számításhoz adatok:
A16: Éves árbevétel:
A17: Dolgozói létszám:
A18: Ingatlanok db száma:
A21: Számított díj
A23: Biztosítási Összeg 5.000.000Ft/esemény/év | E23: Biztosítási Összeg 10.000.000Ft/esemény/év
A25: Alap díj (ingatlan nélkül) | F25: Alap díj (ingatlan nélkül)
A26: Ingatlan jog éves díj/ingatlan | F26: Ingatlan jog éves díj/ingatlan
A28: Összesített éves díj (alap+ingatlan) | F28: Összesített éves díj (alap + ingatlan)
A30: Éves: | F30: Éves:
A31: Féléves: | F31: Féléves:
A32: Negyedéves: | F32: Negyedéves:
A34: Ebből az ingatlan: | F34: Ebből az ingatlan:
A37: Díjajánlat kiadva: | C37: =TODAY() -> 2019-12-12
A40: Közvetítő neve:
A42: Figyelem:
A43: Felhívjuk szíves figyelmét, hogy jelen ajánlatunk indikatív jellegű, további tárgyalások alapjául szolgál, és nem jelent szerződéskötési kötelezettségvállalást a D.A.S. JogSzerviz részéről. Az alábbiakban ismertetett konstrukciókat a Társaságukról jelenleg rendelkezésünkre álló információk alapján, meghatározott feltételek fennállása esetén ajánljuk. Ajánlatunk a kiadástól számított 30 napig szolgál a köztünk lévő tárgyalás alapjának.

Sheet MZ Adatok (hidden)
A1: Tulajdonosa | C1: Igen
A2: Üzemben tartója | C2: Nem
A3: Bérlője | C3: Bizonytalan
A4: Lízingbe vevője

Sheet Adatváltozás nyomtatványok (hidden)
C3: Adatváltozás bejelentő biztosított érdek
C7: Adatváltozás bejelentő általános adatok
C11: Jogtárs változás bejelentő szerződő adatai
C15: Jogtárs változás bejelentő biztosított adatai ingatlanjai
